fUST/lending_fUST_20251018
["ID","MTS","AMOUNT","RATE_DAILY","PERIOD"]
[391733707,1760760611962,264.27138944,0.00024961,2]
[391733708,1760760618133,327.92103061,0.00024014,2]
[391733709,1760760619781,-256.54524089,0.0002499,2]
[391733710,1760760620459,374.39212523,0.00024014,2]
[391733711,1760760624963,9112.52739299,0.00024072,30]
[391733712,1760760624987,4091.13757995,0.00024072,30]
[391733713,1760760625008,10000.01,0.00024072,30]
[391733714,1760760625031,7380.07078861,0.00024072,30]
[391733715,1760760625054,3292.52707336,0.00024072,30]
[391733716,1760760625075,10000.01,0.00024072,30]
[391733717,1760760625096,10000.01,0.00024072,30]
[391733718,1760760625116,8928.25707609,0.00024072,30]
[391733719,1760760626078,-430.37992842,0.00025,2]
[391733720,1760760627503,5000.0,0.00025,2]
[391733721,1760760628446,300.0,0.00025,2]
[391733810,1760760632741,-205.94857348,0.00025008,2]
[391733812,1760760632751,-295.25712001,0.00025011,2]
[391733814,1760760632761,-340.39770721,0.00025025,2]
[391733820,1760760632808,-548.28234772,0.00025025,2]
[391733822,1760760632822,-224.2164541,0.00025027,2]
[391733824,1760760632832,-1518.04567299,0.00025037,2]
[391733826,1760760632841,-326.0,0.00025044,2]
[391733829,1760760632853,-152.66,0.00025044,2]
[391733831,1760760632863,-152.64,0.00025044,2]
[391733833,1760760632872,-738.71087761,0.00025123,2]
[391733835,1760760632883,-300.0,0.00025124,2]
[391733837,1760760632893,-300.0,0.00025124,2]
[391733839,1760760632902,-1200.0,0.00025124,2]
[391733841,1760760632911,-300.0,0.00025124,2]
[391733843,1760760632920,-500.0,0.00025124,2]
[391733845,1760760632929,-744.81,0.00025124,2]
[391733847,1760760632939,-348.74056083,0.00025125,2]
[391733849,1760760632949,-203.22750609,0.00025125,2]
[391733851,1760760632958,-500.0,0.00025125,2]
[391733853,1760760632967,-500.0,0.00025125,2]
[391733855,1760760632976,-3205.28,0.00025125,2]
[391733857,1760760632985,-500.0,0.00025125,2]
[391733859,1760760632995,-500.0,0.00025125,2]
[391733861,1760760633004,-500.0,0.00025125,2]
[391733863,1760760633014,-500.0,0.00025125,2]
[391733865,1760760633024,-2189.42,0.00025125,2]
[391733867,1760760633033,-54852.86823458,0.00025126,2]
[391733869,1760760633046,-1410.72508389,0.00025126,2]
[391733946,1760760635611,3839.25014316,0.00025,2]
[391733947,1760760635634,1160.74985684,0.00025,2]
[391733948,1760760637573,2849.5313607,0.00024128,2]
[391733955,1760760638307,-500.0,0.00025124,2]
[391733956,1760760638317,-34.94906441,0.00025124,2]
[391733957,1760760638329,-207.01819816,0.00025124,2]
[391733958,1760760638339,-500.0,0.00025124,2]
[391733959,1760760638348,-394.11977929,0.00025124,2]
[391733960,1760760638359,-26.86306149,0.00025124,2]
[391733961,1760760638369,-267.67769866,0.00025124,2]
[391733962,1760760638410,-232.32230134,0.00025124,2]
[391733963,1760760638420,-500.0,0.00025124,2]
[391733964,1760760638429,-500.0,0.00025124,2]
[391733965,1760760638438,-500.0,0.00025124,2]
[391733966,1760760638448,-500.0,0.00025124,2]
[391733968,1760760638457,-500.0,0.00025124,2]
[391733969,1760760638466,-500.0,0.00025124,2]
[391733970,1760760638475,-500.0,0.00025124,2]
[391733971,1760760638484,-500.0,0.00025124,2]
[391733972,1760760638494,-500.0,0.00025124,2]
[391733973,1760760638503,-500.0,0.00025124,2]
[391733974,1760760638512,-500.0,0.00025124,2]
[391733975,1760760638523,-500.0,0.00025124,2]
[391733976,1760760638532,-500.0,0.00025124,2]
[391733977,1760760638541,-500.0,0.00025124,2]
[391733978,1760760638551,-500.0,0.00025124,2]
[391733979,1760760638560,-500.0,0.00025124,2]
[391733980,1760760638570,-500.0,0.00025124,2]
[391733981,1760760638580,-500.0,0.00025124,2]
[391733982,1760760638590,-500.0,0.00025124,2]
[391733983,1760760638600,-500.0,0.00025124,2]
[391733984,1760760638609,-10.99529156,0.00025124,2]
[391733985,1760760638622,-489.00470844,0.00025124,2]
[391733986,1760760638632,-500.0,0.00025124,2]
[391733987,1760760638642,-500.0,0.00025124,2]
[391733988,1760760638651,-500.0,0.00025124,2]
[391733989,1760760638661,-500.0,0.00025124,2]
[391733990,1760760638670,-500.0,0.00025124,2]
[391733991,1760760638680,-500.0,0.00025124,2]
[391733992,1760760638689,-136.92979997,0.00025124,2]
[391734025,1760760640685,-3e-08,0.00025124,2]
[391734072,1760760650439,-300.0,0.00025,2]
[391734073,1760760650450,-3054.28443357,0.00025,2]
[391734074,1760760650826,888.0,0.00029041,120]
[391734075,1760760650910,150.0,0.00019405,2]
[391734076,1760760650962,150.0,0.00020329,2]
[391734077,1760760651018,150.0,0.00021253,2]
[391734078,1760760651091,150.0,0.00022177,2]
[391734079,1760760651153,150.0,0.00023101,2]
[391734080,1760760651315,165.78,0.00024025,2]
[391734081,1760760651642,5000.0,0.0002465,2]
[391734082,1760760660266,4234.23,0.0002465,2]
[391734083,1760760660290,765.77,0.0002465,2]
[391734084,1760760675954,5000.0,0.0002465,2]
[391734085,1760760684452,4234.24,0.0002465,2]
[391734086,1760760684475,765.76,0.0002465,2]
[391734087,1760760690214,-296.62672568,0.0002477,2]
[391734088,1760760692220,300.0,0.000246,2]
[391734089,1760760692288,-182.98760789,0.0002477,2]
[391734090,1760760699965,5000.0,0.0002465,2]
[391734091,1760760704860,300.0,0.000246,2]
[391734092,1760760708376,3634.25,0.0002465,2]
[391734093,1760760708399,344.31232392,0.0002465,2]
[391734094,1760760710473,-170.05955477,0.0002474,14]
[391734095,1760760710494,-85.77196882,0.0002477,2]
[391734096,1760760712488,-211.10913219,0.0002477,2]
[391734097,1760760719154,300.0,0.000246,2]
[391734098,1760760721856,150.0,0.00019393,2]
[391734099,1760760722303,150.0,0.00020316,2]
[391734100,1760760722765,150.0,0.0002124,2]
[391734101,1760760723187,150.0,0.00022163,2]
[391734102,1760760723688,150.0,0.00023086,2]
[391734103,1760760724088,5000.0,0.0002465,2]
[391734104,1760760724174,169.49,0.0002401,2]
[391734105,1760760733207,300.0,0.000246,2]
[391734106,1760760738287,3780.52,0.00021989,2]
[391734107,1760760738311,2636.03395217,0.00021989,2]
[391734108,1760760746755,300.0,0.000246,2]
[391734109,1760760746916,5000.0,0.0002465,2]
[391734110,1760760747689,196.0,0.0001551,2]
[391734111,1760760747760,196.0,0.00016805,2]
[391734112,1760760747861,332.82098334,0.000181,2]
[391734113,1760760750013,300.0,0.000246,2]
[391734114,1760760750040,1039.15506449,0.00022024,2]
[391734115,1760760750064,3960.84493551,0.00022024,2]
[391734116,1760760750172,3178.09618532,0.00019178,2]
[391734117,1760760759901,300.0,0.000246,2]
[391734118,1760760769798,2561.06887917,0.0002465,2]
[391734119,1760760769823,2438.93112083,0.0002465,2]
[391734120,1760760770668,-123.50456542,0.0002477,2]
[391734121,1760760770690,-138.145291,0.00024833,2]
[391734122,1760760778455,709.17875341,0.0002465,2]
[391734123,1760760785440,-187.04683,0.0002477,2]
[391734124,1760760788135,-330.702105,0.0002477,2]
[391734125,1760760793640,5000.0,0.0002465,2]
[391734126,1760760793856,150.0,0.00019402,2]
[391734127,1760760794878,152.0,0.00020326,2]
[391734128,1760760795362,227.99,0.00021249,2]
[391734129,1760760795812,303.99,0.00022173,2]
[391734130,1760760796352,379.99,0.00023097,2]
[391734131,1760760796859,455.99,0.00024021,2]
[391734132,1760760801877,1323.17559387,0.0002465,2]
[391734133,1760760809175,273.16981821,0.000246,2]
[391734134,1760760817918,5000.0,0.0002465,2]
[391734135,1760760827265,323.82252846,0.0002465,2]
[391734136,1760760836162,2243.86205946,0.0002465,2]
[391734137,1760760836185,1638.71157097,0.0002465,2]
[391734138,1760760836945,-136.12076048,0.0002477,2]
[391734139,1760760836968,-87.10923952,0.0002477,2]
[391734140,1760760839578,-167.36751622,0.0002477,2]
[391734141,1760760841727,-298.48259625,0.0002477,2]
[391734142,1760760844426,5000.0,0.0002465,2]
[391734143,1760760847563,195.881603,0.00023986,2]
[391734144,1760760853060,1977.06402789,0.0002465,2]
[391734145,1760760869091,1188.35279814,0.0002465,2]
[391734146,1760760869115,3811.64720186,0.0002465,2]
[391734147,1760760874784,150.0,0.00019546,2]
[391734148,1760760874862,150.0,0.00020477,2]
[391734149,1760760875509,214.98,0.00021408,2]
[391734150,1760760875654,-182.27558414,0.0002477,2]
[391734151,1760760875982,286.63,0.00022339,2]
[391734152,1760760876462,358.29,0.0002327,2]
[391734153,1760760876987,429.95,0.000242,2]
[391734154,1760760878352,2971.77594213,0.0002465,2]
[391734155,1760760894991,1626.73685601,0.0002465,2]
[391734156,1760760895024,3373.26314399,0.0002465,2]
[391734157,1760760903465,311.25573896,0.0002465,2]
[391734158,1760760910200,9079.0176865,0.00024195,2]
[391734159,1760760919680,5000.0,0.00024624,2]
[391734160,1760760943558,5000.0,0.00024624,2]
[391734161,1760760955871,0.01,0.00019322,2]
[391734162,1760760955895,149.99,0.00019322,2]
[391734163,1760760956340,150.0,0.00020242,2]
[391734164,1760760957311,205.02,0.00021162,2]
[391734165,1760760957461,273.36,0.00022082,2]
[391734166,1760760957800,341.7,0.00023002,2]
[391734167,1760760958240,410.04,0.00023922,2]
[391734168,1760760968485,5000.0,0.00024526,2]
[391734169,1760760971134,500.0,0.00024408,8]
[391734170,1760760973358,500.0,0.00024408,8]
[391734171,1760760975760,500.0,0.00024408,8]
[391734172,1760760976567,1969.9,0.00024526,2]
[391734173,1760760976593,2656.36646537,0.00024526,2]
[391734174,1760760978376,500.0,0.00024408,8]
[391734175,1760760980194,455.77,0.00024408,8]
[391734176,1760760984584,834.3094557,0.00024526,2]
[391734177,1760760985612,5000.0,0.00024526,2]
[391734178,1760760993836,553.56407893,0.00024526,2]
[391734179,1760760993860,4446.43592107,0.00024526,2]
[391734180,1760761002365,5000.0,0.00024526,2]
[391734181,1760761018986,553.57407893,0.00024526,2]
[391734182,1760761019007,4446.42592107,0.00024526,2]
[391734183,1760761027199,5000.0,0.00024526,2]
[391734184,1760761037592,150.0,0.00019329,2]
[391734185,1760761037667,2818.0,0.0002904,120]
[391734186,1760761038039,150.0,0.0002025,2]
[391734187,1760761038531,180.96,0.0002117,2]
[391734188,1760761039048,72.62407893,0.0002209,2]
[391734189,1760761039079,168.65592107,0.0002209,2]
[391734190,1760761039529,301.61,0.00023011,2]
[391734191,1760761040449,361.93,0.00023931,2]
[391734192,1760761044181,5000.0,0.00024526,2]
[391734193,1760761067990,5000.0,0.00024526,2]
[391734194,1760761068724,-180.0,0.0002474,14]
[391734195,1760761068754,-100.04871441,0.0002474,2]
[391734196,1760761085519,-347.43237874,0.0002474,2]
[391734197,1760761085541,-64.76506387,0.0002477,2]
[391734198,1760761085565,-76.73179266,0.000248,2]
[391734199,1760761088026,-172.41882246,0.000248,2]
[391734200,1760761090688,-172.5,0.000248,2]
[391734201,1760761092614,0.01,0.00024526,2]
[391734202,1760761092638,4999.99,0.00024526,2]
[391734203,1760761109343,155.0,9.3e-07,2]
[391734204,1760761116563,4845.02,0.00024526,2]
[391734205,1760761121372,150.0,0.00019423,2]
[391734206,1760761121851,150.0,0.00020348,2]
[391734207,1760761122587,156.69,0.00021273,2]
[391734208,1760761122837,208.92,0.00022197,2]
[391734209,1760761123318,261.15,0.00023122,2]
[391734210,1760761123875,313.38,0.00024047,2]
[391734211,1760761175517,-154.98,0.00024526,2]
[391734212,1760761175538,-78.75657176,0.000247,2]
[391734213,1760761185495,5000.0,0.00024526,2]
[391734214,1760761200395,150.0,0.00019408,2]
[391734215,1760761200947,150.0,0.00020332,2]
[391734216,1760761201344,150.0,0.00021257,2]
[391734217,1760761201544,-71.24342824,0.000247,2]
[391734218,1760761201566,-55.81049688,0.000248,2]
[391734219,1760761201589,-99.97984546,0.000248,2]
[391734220,1760761201866,150.0,0.00022181,2]
[391734221,1760761202367,182.23,0.00023105,2]
[391734222,1760761203014,218.67,0.00024029,2]
[391734223,1760761204665,228.3493319,0.00024079,2]
[391734224,1760761207570,272.8,0.00024362,8]
[391734225,1760761210572,1425.62474703,0.00024526,2]
[391734226,1760761210597,3574.37525297,0.00024526,2]
[391734227,1760761232624,300.0,0.00024,2]
[391734228,1760761234851,5000.0,0.00024526,2]
[391734229,1760761235471,-50.02015454,0.000248,2]
[391734230,1760761245435,300.0,0.00024,2]
[391734231,1760761257765,300.0,0.00024,2]
[391734232,1760761257878,525.63474703,0.00024526,2]
[391734233,1760761257901,4474.36525297,0.00024526,2]
[391734235,1760761270079,300.0,0.00024,2]
[391734236,1760761271476,-286.10909762,0.00024831,2]
[391734237,1760761274347,150.0,0.00019455,2]
[391734238,1760761274841,150.0,0.00020381,2]
[391734239,1760761275258,150.0,0.00021308,2]
[391734240,1760761275811,150.0,0.00022234,2]
[391734241,1760761276285,156.97,0.0002316,2]
[391734242,1760761276784,188.37,0.00024087,2]
[391734243,1760761280499,-13.89090238,0.00024831,2]
[391734244,1760761282270,5000.0,0.00024526,2]
[391734245,1760761287823,1000.0,0.00024831,2]
[391734246,1760761288698,1000.0,0.00024831,2]
[391734247,1760761289694,1010.58006188,0.00024831,2]
[391734248,1760761295971,-185.78076214,0.00024832,2]
[391734249,1760761298248,-199.23471633,0.00024832,2]
[391734250,1760761300467,-152.53881307,0.00024832,2]
[391734251,1760761301934,70014.6424761,0.00029,120]
[391734252,1760761302002,-662.44570846,0.00024832,2]
[391734253,1760761302023,-300.0,0.00024832,2]
[391734254,1760761302045,-300.0,0.00024832,2]
[391734255,1760761302067,-913.19315466,0.00024832,2]
[391734256,1760761303543,-169.35806005,0.00024832,2]
[391734257,1760761306257,-117.44878529,0.00024832,2]
[391734258,1760761306278,-29.45982832,0.00024833,2]
[391734259,1760761306299,-252.111,0.00024833,8]
[391734260,1760761306320,-1645.7288628,0.00024868,2]
[391734261,1760761307628,1961.64813336,0.00024831,2]
[391734262,1760761307651,3038.35186664,0.00024831,2]
[391734263,1760761307698,-171.57,0.00024868,2]
[391734264,1760761309270,-400.16,0.00024868,2]
[391734265,1760761315006,-341.09344885,0.00024868,2]
[391734266,1760761318187,-171.36217915,0.00024868,2]
[391734267,1760761321018,-265.8597728,0.00024868,2]
[391734268,1760761322863,-300.0,0.00024867,2]
[391734269,1760761323714,-187.88947033,0.00024868,2]
[391734270,1760761325287,-304.30239813,0.00024868,2]
[391734271,1760761327382,-162.250861,0.00024868,2]
[391734272,1760761329977,-257.84607018,0.00024868,2]
[391734273,1760761332847,5000.0,0.00024831,2]
[391734274,1760761334379,-166.68129436,0.00024868,2]
[391734275,1760761337689,-526.27951961,0.00024868,2]
[391734276,1760761339837,-285.61803115,0.00024868,2]
[391734277,1760761340312,463.323844,0.00023919,2]
[391734278,1760761347820,150.0,0.00019375,2]
[391734279,1760761348342,150.0,0.00020297,2]
[391734280,1760761348457,-209.62776021,0.00024868,2]
[391734281,1760761348831,150.0,0.0002122,2]
[391734282,1760761349304,150.0,0.00022143,2]
[391734283,1760761349776,150.0,0.00023065,2]
[391734284,1760761350183,-1200.0,0.00024867,2]
[391734285,1760761350364,159.84,0.00023988,2]
[391734286,1760761350499,-314.72928883,0.00024868,2]
[391734287,1760761352073,-197.35056734,0.00024868,2]
[391734288,1760761355180,-306.1917954,0.00024868,2]
[391734289,1760761355854,271.0,0.0002434,120]
[391734290,1760761356383,-500.0,0.00024867,2]
[391734291,1760761356411,-500.0,0.00024867,2]
[391734292,1760761356439,-500.0,0.00024867,2]
[391734293,1760761356467,-500.0,0.00024867,2]
[391734294,1760761356494,-500.0,0.00024867,2]
[391734295,1760761356524,-500.0,0.00024867,2]
[391734296,1760761356551,-500.0,0.00024867,2]
[391734297,1760761356579,-500.0,0.00024867,2]
[391734298,1760761356606,-500.0,0.00024867,2]
[391734299,1760761356633,-500.0,0.00024867,2]
[391734300,1760761356971,588.49428936,0.00024831,2]
[391734301,1760761356995,4411.50571064,0.00024831,2]
[391734302,1760761357110,271.0,0.00025557,120]
[391734303,1760761358256,-158.64311961,0.00024867,2]
[391734304,1760761358384,271.0,0.00026835,120]
[391734305,1760761359460,-401.76302702,0.00024867,2]
[391734306,1760761359489,-500.0,0.00024867,2]
[391734307,1760761359519,-500.0,0.00024867,2]
[391734308,1760761359548,-500.0,0.00024867,2]
[391734309,1760761359578,-635.26934183,0.00024867,2]
[391734310,1760761359607,-500.0,0.00024867,2]
[391734311,1760761359635,-500.0,0.00024867,2]
[391734312,1760761359664,-500.0,0.00024867,2]
[391734313,1760761359692,-500.0,0.00024867,2]
[391734314,1760761359720,-234.25846412,0.00024867,2]
[391734315,1760761360352,271.0,0.00028177,120]
[391734316,1760761360962,-500.0,0.00024867,2]
[391734317,1760761360990,-421.77178362,0.00024867,2]
[391734319,1760761362368,-78.22821638,0.00024867,2]
[391734320,1760761362404,-500.0,0.00024867,2]
[391734321,1760761362441,-500.0,0.00024867,2]
[391734322,1760761362479,-500.0,0.00024867,2]
[391734323,1760761362515,-500.0,0.00024867,2]
[391734324,1760761362551,-500.0,0.00024867,2]
[391734325,1760761362587,-500.0,0.00024867,2]
[391734326,1760761362621,-500.0,0.00024867,2]
[391734327,1760761362657,-500.0,0.00024867,2]
[391734328,1760761362693,-500.0,0.00024867,2]
[391734329,1760761362730,-343.55356724,0.00024867,2]
[391734330,1760761363195,-156.44643276,0.00024867,2]
[391734331,1760761363228,-500.0,0.00024867,2]
[391734332,1760761363257,-500.0,0.00024867,2]
[391734333,1760761363286,-500.0,0.00024867,2]
[391734334,1760761363315,-500.0,0.00024867,2]
[391734335,1760761363343,-500.0,0.00024867,2]
[391734336,1760761363371,-500.0,0.00024867,2]
[391734337,1760761363399,-500.0,0.00024867,2]
[391734338,1760761363427,-500.0,0.00024867,2]
[391734339,1760761363455,-500.0,0.00024867,2]
[391734340,1760761363483,-187.11713448,0.00024867,2]
[391734341,1760761363513,-225.7922172,0.00024867,2]
[391734342,1760761365037,-87.09064832,0.00024867,2]
[391734343,1760761365059,-253.97534959,0.00024867,2]
[391734344,1760761365324,-246.02465041,0.00024867,2]
[391734345,1760761365353,-441.10125357,0.00024867,2]
[391734346,1760761365380,-500.0,0.00024867,2]
[391734347,1760761365409,-500.0,0.00024867,2]
[391734348,1760761365436,-500.0,0.00024867,2]
[391734349,1760761365464,-500.0,0.00024867,2]
[391734350,1760761365492,-500.0,0.00024867,2]
[391734351,1760761365522,-200.0,0.00024867,2]
[391734352,1760761365550,-500.0,0.00024867,2]
[391734353,1760761365578,-500.0,0.00024867,2]
[391734354,1760761365606,-500.0,0.00024867,2]
[391734355,1760761367031,-500.0,0.00024867,2]
[391734356,1760761367053,-498.93847604,0.00024867,2]
[391734357,1760761368334,-1.06152396,0.00024867,2]
[391734358,1760761368362,-554.96023692,0.00024867,2]
[391734359,1760761368390,-500.0,0.00024867,2]
[391734360,1760761368421,-500.0,0.00024867,2]
[391734361,1760761368451,-500.0,0.00024867,2]
[391734362,1760761368481,-500.0,0.00024867,2]
[391734363,1760761368511,-500.0,0.00024867,2]
[391734364,1760761368539,-500.0,0.00024867,2]
[391734365,1760761368569,-500.0,0.00024867,2]
[391734366,1760761368596,-500.0,0.00024867,2]
[391734367,1760761368623,-387.96647824,0.00024867,2]
[391734368,1760761368791,-112.03352176,0.00024867,2]
[391734369,1760761368821,-500.0,0.00024867,2]
[391734370,1760761368851,-500.0,0.00024867,2]
[391734371,1760761368880,-500.0,0.00024867,2]
[391734372,1760761368909,-500.0,0.00024867,2]
[391734373,1760761368939,-500.0,0.00024867,2]
[391734374,1760761368967,-500.0,0.00024867,2]
[391734375,1760761369000,-500.0,0.00024867,2]
[391734376,1760761369030,-500.0,0.00024867,2]
[391734377,1760761369059,-500.0,0.00024867,2]
[391734378,1760761369088,-275.94295648,0.00024867,2]
[391734379,1760761369762,-224.05704352,0.00024867,2]
[391734380,1760761369784,-266.64843395,0.00024867,2]
[391734381,1760761371636,458.362668,0.00024721,2]
[391734382,1760761373199,801.89503424,0.00024767,2]
[391734383,1760761376883,458.362668,0.00024646,10]
[391734384,1760761377513,-233.35156605,0.00024867,2]
[391734385,1760761377542,-74.00552838,0.00024867,2]
[391734386,1760761377702,-425.99447162,0.00024867,2]
[391734387,1760761377732,-500.0,0.00024867,2]
[391734388,1760761377761,-500.0,0.00024867,2]
[391734389,1760761377788,-500.0,0.00024867,2]
[391734390,1760761377817,-500.0,0.00024867,2]
[391734391,1760761378012,-500.0,0.00024867,2]
[391734392,1760761378043,-500.0,0.00024867,2]
[391734393,1760761378071,-500.0,0.00024867,2]
[391734394,1760761378099,-500.0,0.00024867,2]
[391734395,1760761378127,-500.0,0.00024867,2]
[391734396,1760761380609,-500.0,0.00024867,2]
[391734397,1760761380639,-500.0,0.00024867,2]
[391734398,1760761380669,-500.0,0.00024867,2]
[391734399,1760761380698,-500.0,0.00024867,2]
[391734400,1760761380727,-500.0,0.00024867,2]
[391734401,1760761380754,-500.0,0.00024867,2]
[391734402,1760761380783,-500.0,0.00024867,2]
[391734403,1760761380810,-500.0,0.00024867,2]
[391734404,1760761380838,-500.0,0.00024867,2]
[391734405,1760761380867,-500.0,0.00024867,2]
[391734406,1760761382437,3869.88391912,0.00024831,2]
[391734407,1760761382460,1130.11608088,0.00024831,2]
[391734408,1760761407186,5000.0,0.00024831,2]
[391734409,1760761421270,150.0,0.00019399,2]
[391734410,1760761421763,168.0,0.00024732,2]
[391734411,1760761421815,150.0,0.00020323,2]
[391734412,1760761422296,150.0,0.00021247,2]
[391734413,1760761422698,150.0,0.00022171,2]
[391734414,1760761423161,150.0,0.00023094,2]
[391734415,1760761423881,150.0,0.00024018,2]
[391734416,1760761430694,5000.0,0.00024831,2]
[391734417,1760761455526,5000.0,0.00024526,2]
[391734418,1760761480766,5000.0,0.00024526,2]
[391734419,1760761491912,0.01,0.00019411,2]
[391734420,1760761491936,149.99,0.00019411,2]
[391734421,1760761492440,150.0,0.00020336,2]
[391734422,1760761505709,5000.0,0.00024526,2]
[391734425,1760761530559,4700.02,0.00024526,2]
[391734426,1760761530584,299.98,0.00024526,2]
[391734427,1760761536103,-180.52986815,0.00024824,2]
[391734429,1760761550954,-119.47013185,0.00024824,2]
[391734430,1760761550976,-161.90533232,0.00024824,2]
[391734431,1760761554589,5000.0,0.00024526,2]
[391734432,1760761556387,-138.09466768,0.00024824,2]
[391734433,1760761556410,-68.75442477,0.00024824,2]
[391734434,1760761558367,150.0,0.00019367,2]
[391734435,1760761561701,-246.51184872,0.00024824,2]
[391734436,1760761562357,-884.73372651,0.00024824,2]
[391734437,1760761562387,-300.0,0.00024824,2]
[391734438,1760761578323,-212.41107394,0.00024577,2]
[391734439,1760761595514,-204.12336471,0.00024577,2]
[391734440,1760761597513,-158.84985872,0.00024577,2]
[391734441,1760761600206,-300.0,0.00024577,2]
[391734442,1760761602316,-158.04014128,0.00024577,2]
[391734443,1760761611126,417.15472785,0.00024526,2]
[391734444,1760761623665,150.0,0.00019372,2]
[391734445,1760761624115,150.0,0.00020294,2]
[391734446,1760761624630,150.0,0.00021217,2]
[391734447,1760761635142,168.0,0.00024296,2]
[391734448,1760761637011,1627.59374856,0.00024526,2]
[391734449,1760761662619,7337.26152359,0.000199,2]
[391734450,1760761662642,4403.9593074,0.000199,2]
[391734451,1760761668467,-3966.57556135,0.00024577,2]
[391734452,1760761669638,2066.8588773,0.00018,2]
[391734453,1760761669661,5596.0506926,0.00018,2]
[391734454,1760761669685,10000.01,0.00018,2]
[391734455,1760761669709,10000.01,0.00018,2]
[391734456,1760761669733,10000.01,0.00018,2]
[391734457,1760761669757,10000.01,0.00018,2]
[391734458,1760761669781,10000.01,0.00018,2]
[391734459,1760761669803,5897.49816986,0.00018,2]
[391734460,1760761673842,9637.89913853,0.00018,2]
[391734463,1760761686157,362.11086147,0.00024675,2]
[391734464,1760761686189,437.88913853,0.00024675,2]
[391734465,1760761690246,5000.0,0.00024725,2]
[391734466,1760761701972,-859.75149822,0.00024725,2]
[391734467,1760761702002,-449.13051989,0.00024725,2]
[391734468,1760761702198,-701.65815496,0.00024765,2]
[391734469,1760761703443,2113.44419573,0.000176,2]
[391734470,1760761707797,283.14966102,0.0002,2]
[391734471,1760761710682,3582.33579711,0.0002,2]
[391734472,1760761710704,10000.01,0.0002,2]
[391734473,1760761710727,957.26471766,0.0002,2]
[391734474,1760761712757,9042.74528234,0.00017,2]
[391734475,1760761712779,10000.01,0.00017,2]
[391734476,1760761712801,10000.01,0.00017,2]
[391734477,1760761712822,5000.01,0.00017,2]
[391734478,1760761712844,10000.01,0.00017,2]
[391734479,1760761712866,7400.90374977,0.00017,2]
[391734480,1760761713117,491.79763002,0.00022,5]
[391734481,1760761713915,-5000.0,0.00024765,2]
[391734482,1760761715178,0.01,0.00015,2]
[391734483,1760761715202,2107.30862021,0.00015,2]
[391734484,1760761715229,442.38200979,0.00015,2]
[391734485,1760761715780,1374.34029551,0.0002061,2]
[391734486,1760761716104,959.34347698,0.00019,2]
[391734487,1760761716660,588.40396468,0.000149,2]
[391734488,1760761717045,1000.0,0.0001,2]
[391734489,1760761717162,-178.24,0.00024774,2]
[391734490,1760761717639,3644.26570166,0.00018,2]
[391734491,1760761718651,-339.67607711,0.00024774,2]
[391734492,1760761719471,271.96878157,0.00024,7]
[391734493,1760761720208,160.0,0.00023771,3]
[391734494,1760761720424,1559.30576981,0.0002,2]